[Event "December 12 Late 2023"]
[Site "https://www.chess.com"]
[Date "2023.12.12"]
[Round "1"]
[White "Bagrationi, Alexander"]
[Black "Tokat, Nehir"]
[Result "0-1"]
[Board "145"]
[TimeControl "180+1"]
[WhiteFideId "14104954"]
[BlackFideId "34557555"]
[WhiteElo "2537"]
[BlackElo "2137"]
[WhiteTeam "ISR"]
[BlackTeam "TUR"]
[WhiteClock "0:00:03"]
[BlackClock "0:00:06"]

1. e4 {[%clk 0:02:57]}  c5 {[%clk 0:02:55]} 2. d3 {[%clk 0:02:56]}  g6 {[%clk 0:02:55]} 3. f4 {[%clk 0:02:57]}  Bg7 {[%clk 0:02:55]} 4. c3 {[%clk 0:02:57]}  Nc6 {[%clk 0:02:55]} 5. Be3 {[%clk 0:02:58]}  b6 {[%clk 0:02:55]} 6. Nd2 {[%clk 0:02:58]}  Bb7 {[%clk 0:02:55]} 7. Ngf3 {[%clk 0:02:59]}  d5 {[%clk 0:02:56]} 8. e5 {[%clk 0:02:53]}  d4 {[%clk 0:02:56]} 9. Bf2 {[%clk 0:02:53]}  f6 {[%clk 0:02:52]} 10. e6 {[%clk 0:02:48]}  Qd6 {[%clk 0:02:46]} 11. Qe2 {[%clk 0:02:42]}  dxc3 {[%clk 0:02:41]} 12. bxc3 {[%clk 0:02:42]}  Qxf4 {[%clk 0:02:37]} 13. g3 {[%clk 0:02:39]}  Qd6 {[%clk 0:02:32]} 14. Nc4 {[%clk 0:02:35]}  Qc7 {[%clk 0:02:29]} 15. Bg2 {[%clk 0:02:31]}  f5 {[%clk 0:02:29]} 16. O-O {[%clk 0:02:28]}  Nf6 {[%clk 0:02:09]} 17. d4 {[%clk 0:02:07]}  cxd4 {[%clk 0:01:45]} 18. Nxd4 {[%clk 0:02:07]}  Nxd4 {[%clk 0:01:31]} 19. Bxd4 {[%clk 0:02:06]}  Bxg2 {[%clk 0:01:20]} 20. Qxg2 {[%clk 0:01:52]}  O-O {[%clk 0:01:19]} 21. Ne5 {[%clk 0:01:50]}  Qd6 {[%clk 0:01:06]} 22. Rae1 {[%clk 0:01:45]}  Rac8 {[%clk 0:01:04]} 23. Nf7 {[%clk 0:01:37]}  Qc6 {[%clk 0:00:56]} 24. Qxc6 {[%clk 0:01:17]}  Rxc6 {[%clk 0:00:56]} 25. h3 {[%clk 0:01:16]}  Ne4 {[%clk 0:00:56]} 26. g4 {[%clk 0:00:33]}  Bxd4+ {[%clk 0:00:45]} 27. cxd4 {[%clk 0:00:33]}  Rxe6 {[%clk 0:00:39]} 28. Nh6+ {[%clk 0:00:32]}  Kg7 {[%clk 0:00:37]} 29. gxf5 {[%clk 0:00:33]}  Rd6 {[%clk 0:00:25]} 30. Rxe4 {[%clk 0:00:28]}  Kxh6 {[%clk 0:00:25]} 31. fxg6 {[%clk 0:00:18]}  Rxf1+ {[%clk 0:00:26]} 32. Kxf1 {[%clk 0:00:18]}  hxg6 {[%clk 0:00:26]} 33. Ke2 {[%clk 0:00:16]}  e6 {[%clk 0:00:25]} 34. Kd3 {[%clk 0:00:16]}  Kg5 {[%clk 0:00:25]} 35. Kc4 {[%clk 0:00:12]}  Kf5 {[%clk 0:00:25]} 36. Rg4 {[%clk 0:00:12]}  a6 {[%clk 0:00:23]} 37. a4 {[%clk 0:00:11]}  Rc6+ {[%clk 0:00:23]} 38. Kd3 {[%clk 0:00:12]}  Rc1 {[%clk 0:00:22]} 39. Rg2 {[%clk 0:00:12]}  Rd1+ {[%clk 0:00:22]} 40. Kc4 {[%clk 0:00:12]}  Rc1+ {[%clk 0:00:22]} 41. Kd3 {[%clk 0:00:11]}  Ra1 {[%clk 0:00:22]} 42. Rf2+ {[%clk 0:00:11]}  Kg5 {[%clk 0:00:23]} 43. Re2 {[%clk 0:00:10]}  Rxa4 {[%clk 0:00:20]} 44. Rxe6 {[%clk 0:00:10]}  Rb4 {[%clk 0:00:21]} 45. Kc3 {[%clk 0:00:08]}  Rb1 {[%clk 0:00:21]} 46. d5 {[%clk 0:00:07]}  Rd1 {[%clk 0:00:21]} 47. Kc4 {[%clk 0:00:06]}  b5+ {[%clk 0:00:20]} 48. Kc5 {[%clk 0:00:06]}  Kf5 {[%clk 0:00:21]} 49. Re2 {[%clk 0:00:05]}  g5 {[%clk 0:00:16]} 50. d6 {[%clk 0:00:04]}  b4 {[%clk 0:00:13]} 51. Kc6 {[%clk 0:00:02]}  b3 {[%clk 0:00:13]} 52. Rb2 {[%clk 0:00:01]}  Rc1+ {[%clk 0:00:12]} 53. Kd7 {[%clk 0:00:01]}  Rc3 {[%clk 0:00:13]} 54. Ke7 {[%clk 0:00:01]}  Rd3 {[%clk 0:00:13]} 55. d7 {[%clk 0:00:01]}  Re3+ {[%clk 0:00:14]} 56. Kf7 {[%clk 0:00:02]}  Rd3 {[%clk 0:00:14]} 57. Ke8 {[%clk 0:00:02]}  Re3+ {[%clk 0:00:14]} 58. Kd8 {[%clk 0:00:03]}  Ke6 {[%clk 0:00:14]} 59. Rd2 {[%clk 0:00:02]}  Rc3 {[%clk 0:00:10]} 60. Ke8 {[%clk 0:00:02]}  Rxh3 {[%clk 0:00:08]} 61. Kf8 {[%clk 0:00:01]}  Rh8+ {[%clk 0:00:06]} 62. Kg7 {[%clk 0:00:02]}  Rd8 {[%clk 0:00:07]} 63. Rb2 {[%clk 0:00:02]}  Rxd7+ {[%clk 0:00:07]} 64. Kg6 {[%clk 0:00:03]}  Rd5 {[%clk 0:00:06]} 65. Rxb3 {[%clk 0:00:02]}  a5 {[%clk 0:00:07]} 66. Ra3 {[%clk 0:00:03]}  Ke5 {[%clk 0:00:06]} 67. Kh5 {[%clk 0:00:03]}  Ke4 {[%clk 0:00:07]} 68. Kg4 {[%clk 0:00:04]}  Rb5 {[%clk 0:00:06]} 69. Ra4+ {[%clk 0:00:04]}  Kd3 {[%clk 0:00:06]} 70. Ra1 {[%clk 0:00:04]}  Kc2 {[%clk 0:00:06]} 71. Re1 {[%clk 0:00:04]}  a4 {[%clk 0:00:07]} 72. Re4 {[%clk 0:00:04]}  a3 {[%clk 0:00:07]} 73. Ra4 {[%clk 0:00:04]}  Kb2 {[%clk 0:00:06]} 74. Ra5 {[%clk 0:00:03]}  Rxa5 {[%clk 0:00:06]} 0-1

[Event "December 12 Late 2023"]
[Site "https://www.chess.com"]
[Date "2023.12.12"]
[Round "1"]
[White "Shapiro, Viktor"]
[Black "Janiashvili, Mariami"]
[Result "1-0"]
[Board "147"]
[TimeControl "180+1"]
[WhiteFideId "4175700"]
[BlackFideId "13612077"]
[WhiteElo "2536"]
[BlackElo "2132"]
[WhiteTeam "RUS"]
[BlackTeam "GEO"]
[WhiteClock "0:01:30"]
[BlackClock "0:02:11"]

1. Nf3 {[%clk 0:03:00]}  d5 {[%clk 0:02:58]} 2. g3 {[%clk 0:03:01]}  c5 {[%clk 0:02:57]} 3. Bg2 {[%clk 0:03:01]}  Nc6 {[%clk 0:02:57]} 4. d3 {[%clk 0:03:02]}  g6 {[%clk 0:02:58]} 5. O-O {[%clk 0:03:02]}  Bg7 {[%clk 0:02:58]} 6. Nbd2 {[%clk 0:03:02]}  Nf6 {[%clk 0:02:57]} 7. c4 {[%clk 0:03:02]}  O-O {[%clk 0:02:55]} 8. a3 {[%clk 0:03:02]}  dxc4 {[%clk 0:02:55]} 9. Nxc4 {[%clk 0:03:02]}  Be6 {[%clk 0:02:53]} 10. Bd2 {[%clk 0:02:57]}  Rc8 {[%clk 0:02:53]} 11. Rc1 {[%clk 0:02:56]}  b6 {[%clk 0:02:51]} 12. b4 {[%clk 0:02:54]}  cxb4 {[%clk 0:02:50]} 13. axb4 {[%clk 0:02:54]}  Nd4 {[%clk 0:02:49]} 14. Nxd4 {[%clk 0:02:52]}  Qxd4 {[%clk 0:02:49]} 15. Bc3 {[%clk 0:02:44]}  Qd7 {[%clk 0:02:45]} 16. Ne5 {[%clk 0:02:43]}  Qd6 {[%clk 0:02:42]} 17. Nc6 {[%clk 0:02:18]}  Ra8 {[%clk 0:02:28]} 18. Be5 {[%clk 0:02:12]}  Qd7 {[%clk 0:02:26]} 19. b5 {[%clk 0:02:08]}  Rac8 {[%clk 0:02:23]} 20. Qa4 {[%clk 0:02:05]}  Bd5 {[%clk 0:02:14]} 21. Bxd5 {[%clk 0:01:31]}  Qxd5 {[%clk 0:02:11]} 22. Nxe7+ {[%clk 0:01:30]} 1-0

[Event "December 12 Late 2023"]
[Site "https://www.chess.com"]
[Date "2023.12.12"]
[Round "1"]
[White "Powell, Paul"]
[Black "Silva, Kaua Marques"]
[Result "0-1"]
[Board "148"]
[TimeControl "180+1"]
[WhiteFideId "2005840"]
[BlackFideId "22701168"]
[WhiteElo "2130"]
[BlackElo "2536"]
[WhiteTeam "USA"]
[BlackTeam "BRA"]
[WhiteClock "0:00:00"]
[BlackClock "0:00:02"]

1. d4 {[%clk 0:03:00]}  c5 {[%clk 0:02:50]} 2. c3 {[%clk 0:02:59]}  d5 {[%clk 0:02:50]} 3. Nf3 {[%clk 0:02:59]}  Nc6 {[%clk 0:02:49]} 4. Bf4 {[%clk 0:02:56]}  Nf6 {[%clk 0:02:47]} 5. e3 {[%clk 0:02:56]}  e6 {[%clk 0:02:45]} 6. Bd3 {[%clk 0:02:54]}  Bd6 {[%clk 0:02:44]} 7. O-O {[%clk 0:02:52]}  O-O {[%clk 0:02:44]} 8. Nbd2 {[%clk 0:02:47]}  b6 {[%clk 0:02:41]} 9. Re1 {[%clk 0:02:46]}  Bb7 {[%clk 0:02:40]} 10. Qe2 {[%clk 0:02:25]}  Re8 {[%clk 0:02:38]} 11. Ne5 {[%clk 0:02:22]}  Ne7 {[%clk 0:02:35]} 12. Ndf3 {[%clk 0:02:18]}  Ng6 {[%clk 0:02:33]} 13. Ng5 {[%clk 0:02:02]}  Bxe5 {[%clk 0:02:14]} 14. dxe5 {[%clk 0:01:59]}  Nd7 {[%clk 0:02:12]} 15. Qh5 {[%clk 0:01:50]}  Ndf8 {[%clk 0:02:10]} 16. h4 {[%clk 0:01:26]}  a5 {[%clk 0:01:59]} 17. Qg4 {[%clk 0:01:19]}  Ba6 {[%clk 0:01:59]} 18. Bc2 {[%clk 0:01:16]}  Ne7 {[%clk 0:01:51]} 19. h5 {[%clk 0:01:09]}  Ra7 {[%clk 0:01:09]} 20. Rad1 {[%clk 0:00:53]}  Rd7 {[%clk 0:01:08]} 21. h6 {[%clk 0:00:33]}  g6 {[%clk 0:01:07]} 22. Nf3 {[%clk 0:00:32]}  b5 {[%clk 0:00:26]} 23. Bg5 {[%clk 0:00:30]}  Bb7 {[%clk 0:00:23]} 24. Bf6 {[%clk 0:00:29]}  Bc6 {[%clk 0:00:18]} 25. Ng5 {[%clk 0:00:25]}  Qa8 {[%clk 0:00:17]} 26. f4 {[%clk 0:00:24]}  Nf5 {[%clk 0:00:17]} 27. Bxf5 {[%clk 0:00:22]}  exf5 {[%clk 0:00:17]} 28. Qg3 {[%clk 0:00:21]}  Ne6 {[%clk 0:00:17]} 29. Nxe6 {[%clk 0:00:20]}  fxe6 {[%clk 0:00:18]} 30. Qg5 {[%clk 0:00:20]}  Rf7 {[%clk 0:00:17]} 31. Rd2 {[%clk 0:00:18]}  b4 {[%clk 0:00:17]} 32. cxb4 {[%clk 0:00:18]}  axb4 {[%clk 0:00:18]} 33. Rc1 {[%clk 0:00:16]}  c4 {[%clk 0:00:12]} 34. Qg3 {[%clk 0:00:13]}  Qxa2 {[%clk 0:00:12]} 35. Qf2 {[%clk 0:00:13]}  Ra8 {[%clk 0:00:12]} 36. Rdd1 {[%clk 0:00:12]}  Qb3 {[%clk 0:00:12]} 37. Qd2 {[%clk 0:00:11]}  Ra2 {[%clk 0:00:12]} 38. Rc2 {[%clk 0:00:10]}  Ba4 {[%clk 0:00:13]} 39. Rdc1 {[%clk 0:00:09]}  Rc7 {[%clk 0:00:11]} 40. Kh2 {[%clk 0:00:09]}  Kf7 {[%clk 0:00:11]} 41. Qd4 {[%clk 0:00:10]}  Ra1 {[%clk 0:00:05]} 42. Qb6 {[%clk 0:00:09]}  Rd7 {[%clk 0:00:04]} 43. Qb8 {[%clk 0:00:05]}  Qxe3 {[%clk 0:00:03]} 44. Qh8 {[%clk 0:00:05]}  Qxf4+ {[%clk 0:00:03]} 45. Kh3 {[%clk 0:00:04]}  Qxh6+ {[%clk 0:00:04]} 46. Kg3 {[%clk 0:00:04]}  f4+ {[%clk 0:00:04]} 47. Kf2 {[%clk 0:00:03]}  Rxc1 {[%clk 0:00:04]} 48. Rxc1 {[%clk 0:00:03]}  g5 {[%clk 0:00:03]} 49. Rh1 {[%clk 0:00:00]}  Qf8 {[%clk 0:00:02]} 0-1

[Event "December 12 Late 2023"]
[Site "https://www.chess.com"]
[Date "2023.12.12"]
[Round "1"]
[White "Roberson, Peter T"]
[Black "Harrington, Steve"]
[Result "1-0"]
[Board "149"]
[TimeControl "180+1"]
[WhiteFideId "412384"]
[BlackFideId "2038730"]
[WhiteElo "2536"]
[BlackElo "2128"]
[WhiteTeam "ENG"]
[BlackTeam "USA"]
[WhiteClock "0:00:06"]
[BlackClock "0:00:08"]

1. d4 {[%clk 0:03:00]}  d5 {[%clk 0:03:00]} 2. Bf4 {[%clk 0:03:00]}  Nc6 {[%clk 0:02:59]} 3. e3 {[%clk 0:03:01]}  Bf5 {[%clk 0:02:59]} 4. Bb5 {[%clk 0:03:01]}  Nf6 {[%clk 0:02:58]} 5. Nf3 {[%clk 0:03:00]}  a6 {[%clk 0:02:58]} 6. Bxc6+ {[%clk 0:03:00]}  bxc6 {[%clk 0:02:58]} 7. Ne5 {[%clk 0:03:01]}  Bd7 {[%clk 0:02:55]} 8. c4 {[%clk 0:02:55]}  e6 {[%clk 0:02:54]} 9. O-O {[%clk 0:02:55]}  Bd6 {[%clk 0:02:45]} 10. Nd2 {[%clk 0:02:55]}  O-O {[%clk 0:02:43]} 11. Rc1 {[%clk 0:02:55]}  Rb8 {[%clk 0:02:36]} 12. Nb3 {[%clk 0:02:50]}  Ne4 {[%clk 0:02:31]} 13. f3 {[%clk 0:02:47]}  Nf6 {[%clk 0:02:29]} 14. Qd3 {[%clk 0:02:46]}  a5 {[%clk 0:02:19]} 15. Nxa5 {[%clk 0:02:25]}  Rxb2 {[%clk 0:02:17]} 16. Naxc6 {[%clk 0:02:19]}  Qa8 {[%clk 0:02:10]} 17. c5 {[%clk 0:01:26]}  Bxe5 {[%clk 0:02:08]} 18. Nxe5 {[%clk 0:01:25]}  Qxa2 {[%clk 0:02:06]} 19. Kh1 {[%clk 0:01:23]}  Bb5 {[%clk 0:02:01]} 20. Qd1 {[%clk 0:01:05]}  Bxf1 {[%clk 0:02:01]} 21. Qxf1 {[%clk 0:01:06]}  Nh5 {[%clk 0:01:58]} 22. Nd3 {[%clk 0:00:57]}  Rd2 {[%clk 0:01:52]} 23. Bxc7 {[%clk 0:00:54]}  Qa6 {[%clk 0:01:40]} 24. Ne5 {[%clk 0:00:47]}  Qxf1+ {[%clk 0:01:38]} 25. Rxf1 {[%clk 0:00:48]}  Rc2 {[%clk 0:01:38]} 26. Bd6 {[%clk 0:00:45]}  Rc8 {[%clk 0:01:34]} 27. Rb1 {[%clk 0:00:42]}  f6 {[%clk 0:01:32]} 28. Nd3 {[%clk 0:00:40]}  g5 {[%clk 0:01:31]} 29. h3 {[%clk 0:00:33]}  Ng7 {[%clk 0:01:29]} 30. Rb7 {[%clk 0:00:32]}  Ne8 {[%clk 0:01:26]} 31. Kh2 {[%clk 0:00:28]}  Rc3 {[%clk 0:01:17]} 32. Nf2 {[%clk 0:00:23]}  Rxe3 {[%clk 0:01:16]} 33. Re7 {[%clk 0:00:23]}  Re2 {[%clk 0:01:13]} 34. Ng4 {[%clk 0:00:23]}  h5 {[%clk 0:01:10]} 35. Nh6+ {[%clk 0:00:15]}  Kh8 {[%clk 0:01:01]} 36. Nf7+ {[%clk 0:00:15]}  Kg7 {[%clk 0:00:50]} 37. Nxg5+ {[%clk 0:00:14]}  Kg6 {[%clk 0:00:50]} 38. Nxe6 {[%clk 0:00:12]}  Rd2 {[%clk 0:00:31]} 39. Kg3 {[%clk 0:00:07]}  Rd1 {[%clk 0:00:18]} 40. Bf4 {[%clk 0:00:07]}  Rd3 {[%clk 0:00:14]} 41. Bd6 {[%clk 0:00:04]}  Rc3 {[%clk 0:00:14]} 42. Kf4 {[%clk 0:00:04]}  Rc4 {[%clk 0:00:13]} 43. g4 {[%clk 0:00:04]}  hxg4 {[%clk 0:00:12]} 44. hxg4 {[%clk 0:00:05]}  Rc1 {[%clk 0:00:10]} 45. Nf8+ {[%clk 0:00:05]}  Kh6 {[%clk 0:00:08]} 46. Rh7# {[%clk 0:00:06]} 1-0

[Event "December 12 Late 2023"]
[Site "https://www.chess.com"]
[Date "2023.12.12"]
[Round "1"]
[White "Olsson, Linus"]
[Black "Luxama, Jacques Muller"]
[Result "0-1"]
[Board "151"]
[TimeControl "180+1"]
[WhiteFideId "1706098"]
[BlackFideId "11900113"]
[WhiteElo "2535"]
[BlackElo "2121"]
[WhiteTeam "SWE"]
[BlackTeam "HAI"]
[WhiteClock "0:00:00"]
[BlackClock "0:00:09"]

1. e4 {[%clk 0:02:57]}  c5 {[%clk 0:02:58]} 2. Nf3 {[%clk 0:02:57]}  d6 {[%clk 0:02:56]} 3. d4 {[%clk 0:02:57]}  cxd4 {[%clk 0:02:57]} 4. Nxd4 {[%clk 0:02:58]}  Nf6 {[%clk 0:02:56]} 5. Nc3 {[%clk 0:02:59]}  a6 {[%clk 0:02:56]} 6. Nb3 {[%clk 0:02:59]}  h6 {[%clk 0:02:45]} 7. h3 {[%clk 0:02:57]}  e5 {[%clk 0:02:45]} 8. Be3 {[%clk 0:02:54]}  Be6 {[%clk 0:02:43]} 9. Qd2 {[%clk 0:02:50]}  Be7 {[%clk 0:02:41]} 10. O-O-O {[%clk 0:02:49]}  Nbd7 {[%clk 0:02:39]} 11. Kb1 {[%clk 0:02:48]}  Rc8 {[%clk 0:02:38]} 12. Bd3 {[%clk 0:02:43]}  b5 {[%clk 0:02:22]} 13. f4 {[%clk 0:02:39]}  Qc7 {[%clk 0:02:19]} 14. f5 {[%clk 0:02:24]}  Bc4 {[%clk 0:02:17]} 15. g4 {[%clk 0:02:23]}  b4 {[%clk 0:02:12]} 16. Ne2 {[%clk 0:02:16]}  a5 {[%clk 0:01:49]} 17. Bxc4 {[%clk 0:02:13]}  Qxc4 {[%clk 0:01:49]} 18. Nxa5 {[%clk 0:02:12]}  Qxe4 {[%clk 0:01:48]} 19. Ng3 {[%clk 0:02:07]}  Qf3 {[%clk 0:01:43]} 20. Rhg1 {[%clk 0:01:52]}  Qa8 {[%clk 0:01:38]} 21. Nb3 {[%clk 0:01:46]}  d5 {[%clk 0:01:37]} 22. g5 {[%clk 0:01:42]}  hxg5 {[%clk 0:01:24]} 23. Bxg5 {[%clk 0:01:43]}  Rxh3 {[%clk 0:01:20]} 24. Qe2 {[%clk 0:01:29]}  Qc6 {[%clk 0:01:10]} 25. Bxf6 {[%clk 0:01:19]}  Bxf6 {[%clk 0:01:05]} 26. Nh5 {[%clk 0:01:19]}  Rxh5 {[%clk 0:00:42]} 27. Qxh5 {[%clk 0:01:20]}  Qxc2+ {[%clk 0:00:42]} 28. Ka1 {[%clk 0:01:20]}  e4 {[%clk 0:00:42]} 29. Rb1 {[%clk 0:00:39]}  Ra8 {[%clk 0:00:37]} 30. Qh8+ {[%clk 0:00:38]}  Nf8 {[%clk 0:00:36]} 31. Qh3 {[%clk 0:00:31]}  Bc3 {[%clk 0:00:31]} 32. Nc1 {[%clk 0:00:20]}  Bf6 {[%clk 0:00:22]} 33. Qb3 {[%clk 0:00:17]}  Qc5 {[%clk 0:00:19]} 34. Ne2 {[%clk 0:00:14]}  Ra3 {[%clk 0:00:19]} 35. Qd1 {[%clk 0:00:08]}  Qa5 {[%clk 0:00:19]} 36. Nc1 {[%clk 0:00:07]}  b3 {[%clk 0:00:19]} 37. Qxb3 {[%clk 0:00:06]}  Rxb3 {[%clk 0:00:18]} 38. Nxb3 {[%clk 0:00:07]}  Qb4 {[%clk 0:00:17]} 39. Rgd1 {[%clk 0:00:05]}  d4 {[%clk 0:00:17]} 40. Re1 {[%clk 0:00:05]}  e3 {[%clk 0:00:16]} 41. Rbd1 {[%clk 0:00:06]}  Nd7 {[%clk 0:00:15]} 42. Kb1 {[%clk 0:00:03]}  Nc5 {[%clk 0:00:15]} 43. Nc1 {[%clk 0:00:02]}  Na4 {[%clk 0:00:15]} 44. Nb3 {[%clk 0:00:02]}  Nc5 {[%clk 0:00:14]} 45. Nc1 {[%clk 0:00:02]}  Ke7 {[%clk 0:00:14]} 46. Re2 {[%clk 0:00:01]}  Kf8 {[%clk 0:00:13]} 47. Nd3 {[%clk 0:00:01]}  Nxd3 {[%clk 0:00:11]} 48. Rxd3 {[%clk 0:00:02]}  Qc4 {[%clk 0:00:12]} 49. Rd1 {[%clk 0:00:02]}  Bg5 {[%clk 0:00:11]} 50. Rc2 {[%clk 0:00:02]}  Qd5 {[%clk 0:00:10]} 51. Rd3 {[%clk 0:00:00]}  Qe4 {[%clk 0:00:09]} 0-1

[Event "December 12 Late 2023"]
[Site "https://www.chess.com"]
[Date "2023.12.12"]
[Round "1"]
[White "Novikova, Margarita"]
[Black "Silva Lucena, Cristian"]
[Result "0-1"]
[Board "152"]
[TimeControl "180+1"]
[WhiteFideId "14109689"]
[BlackFideId "2232588"]
[WhiteElo "2118"]
[BlackElo "2534"]
[WhiteTeam "GER"]
[BlackTeam "ESP"]
[WhiteClock "0:00:00"]
[BlackClock "0:01:46"]

1. e4 {[%clk 0:02:59]}  e5 {[%clk 0:02:59]} 2. Nf3 {[%clk 0:02:29]}  Nc6 {[%clk 0:02:56]} 3. Bc4 {[%clk 0:02:15]}  Bc5 {[%clk 0:02:54]} 4. c3 {[%clk 0:02:14]}  Nf6 {[%clk 0:02:53]} 5. d4 {[%clk 0:02:13]}  exd4 {[%clk 0:02:52]} 6. cxd4 {[%clk 0:02:14]}  Bb4+ {[%clk 0:02:50]} 7. Bd2 {[%clk 0:02:14]}  Bxd2+ {[%clk 0:02:50]} 8. Nbxd2 {[%clk 0:02:15]}  d5 {[%clk 0:02:50]} 9. exd5 {[%clk 0:02:14]}  Nxd5 {[%clk 0:02:50]} 10. O-O {[%clk 0:02:15]}  O-O {[%clk 0:02:51]} 11. Rc1 {[%clk 0:02:14]}  h6 {[%clk 0:02:49]} 12. h3 {[%clk 0:02:13]}  Be6 {[%clk 0:02:49]} 13. Ne4 {[%clk 0:02:08]}  Nce7 {[%clk 0:02:42]} 14. Nc5 {[%clk 0:01:10]}  Bc8 {[%clk 0:02:42]} 15. Ne5 {[%clk 0:01:07]}  b6 {[%clk 0:02:41]} 16. Ne4 {[%clk 0:01:05]}  Be6 {[%clk 0:02:41]} 17. Qb3 {[%clk 0:01:00]}  a5 {[%clk 0:02:40]} 18. a3 {[%clk 0:00:55]}  a4 {[%clk 0:02:40]} 19. Qa2 {[%clk 0:00:54]}  b5 {[%clk 0:02:34]} 20. Bxd5 {[%clk 0:00:40]}  Bxd5 {[%clk 0:02:34]} 21. Qb1 {[%clk 0:00:40]}  Nf5 {[%clk 0:02:33]} 22. Rfd1 {[%clk 0:00:38]}  Re8 {[%clk 0:02:28]} 23. Nc3 {[%clk 0:00:34]}  Nh4 {[%clk 0:02:26]} 24. Nxd5 {[%clk 0:00:20]}  Qxd5 {[%clk 0:02:27]} 25. f3 {[%clk 0:00:20]}  Rad8 {[%clk 0:02:15]} 26. Qc2 {[%clk 0:00:17]}  f6 {[%clk 0:02:05]} 27. Ng4 {[%clk 0:00:16]}  h5 {[%clk 0:02:03]} 28. Nf2 {[%clk 0:00:16]}  Qg5 {[%clk 0:02:03]} 29. Ne4 {[%clk 0:00:15]}  Nxf3+ {[%clk 0:02:01]} 30. Kh1 {[%clk 0:00:14]}  Qf4 {[%clk 0:01:59]} 31. gxf3 {[%clk 0:00:07]}  Qxf3+ {[%clk 0:01:59]} 32. Qg2 {[%clk 0:00:08]}  Qxg2+ {[%clk 0:01:58]} 33. Kxg2 {[%clk 0:00:08]}  Rxe4 {[%clk 0:01:59]} 34. Rxc7 {[%clk 0:00:07]}  Rexd4 {[%clk 0:01:56]} 35. Rxd4 {[%clk 0:00:06]}  Rxd4 {[%clk 0:01:57]} 36. Rc8+ {[%clk 0:00:05]}  Kh7 {[%clk 0:01:57]} 37. Rc2 {[%clk 0:00:05]}  Kh6 {[%clk 0:01:57]} 38. Kg3 {[%clk 0:00:05]}  h4+ {[%clk 0:01:55]} 39. Kf3 {[%clk 0:00:05]}  f5 {[%clk 0:01:55]} 40. Ke3 {[%clk 0:00:05]}  Re4+ {[%clk 0:01:55]} 41. Kf3 {[%clk 0:00:03]}  g6 {[%clk 0:01:55]} 42. Rc5 {[%clk 0:00:02]}  b4 {[%clk 0:01:55]} 43. Ra5 {[%clk 0:00:02]}  bxa3 {[%clk 0:01:53]} 44. bxa3 {[%clk 0:00:03]}  Rc4 {[%clk 0:01:53]} 45. Kg2 {[%clk 0:00:02]}  Rc2+ {[%clk 0:01:52]} 46. Kf3 {[%clk 0:00:02]}  Rc3+ {[%clk 0:01:52]} 47. Kf4 {[%clk 0:00:03]}  Rxa3 {[%clk 0:01:52]} 48. Ke5 {[%clk 0:00:03]}  Rxh3 {[%clk 0:01:51]} 49. Kf6 {[%clk 0:00:03]}  Kh5 {[%clk 0:01:50]} 50. Rxa4 {[%clk 0:00:03]}  Rg3 {[%clk 0:01:50]} 51. Ra8 {[%clk 0:00:03]}  h3 {[%clk 0:01:50]} 52. Rh8+ {[%clk 0:00:03]}  Kg4 {[%clk 0:01:50]} 53. Kxg6 {[%clk 0:00:04]}  f4 {[%clk 0:01:51]} 54. Kf6 {[%clk 0:00:04]}  Kf3 {[%clk 0:01:49]} 55. Ke5 {[%clk 0:00:04]}  Ke3 {[%clk 0:01:47]} 56. Rf8 {[%clk 0:00:04]}  f3 {[%clk 0:01:47]} 57. Kf5 {[%clk 0:00:03]}  f2 {[%clk 0:01:47]} 58. Re8+ {[%clk 0:00:00]}  Kf3 {[%clk 0:01:46]} 0-1